bitfinex-derivatives/quotes_SOLF0:USTF0_20260202
["timestamp","ask_amount","ask_price","bid_price","bid_amount"]
[1770018421120,36.76211926,102.09,102.01,137.3977]
[1770018421314,36.76211926,102.07,101.99,52.42583162]
[1770018421520,7.19780827,102.09,102.02,137.385]
[1770018421816,36.76211926,102.1,102.02,137.385]
[1770018422016,36.76211926,102.08,102.0,8.7470765]
[1770018422214,36.76211926,102.04,101.96,181.14495512]
[1770018422821,36.76211926,102.06,101.99,34.84485512]
[1770018423116,337.59780827,102.07,102.0,172.25475512]
[1770018423322,330.4,102.07,102.0,172.25475512]
[1770018423522,367.16211926,102.07,102.0,34.84485512]
[1770018424018,36.76211926,102.07,102.0,34.84485512]
[1770018424219,349.84211926,102.07,102.0,34.84485512]
[1770018424717,313.08,102.07,102.01,137.3972]
[1770018425017,331.16,102.09,102.02,137.3843]
[1770018425224,36.76211926,102.1,102.03,172.21395512]
[1770018425618,36.76211926,102.1,102.04,146.1881]
[1770018425818,331.26,102.11,102.04,146.1881]
[1770018426322,331.26,102.11,102.05,146.1721]
[1770018427318,331.26,102.11,102.05,181.01695512]
[1770018428018,36.76220562,102.13,102.06,146.157]
[1770018428224,36.76220562,102.13,102.07,137.316]
[1770018428626,36.76220562,102.13,102.07,8.8273]
[1770018429028,137.1846,102.17,102.07,8.8273]
[1770018429029,37.63687841,102.19,102.11,137.2544]
[1770018429221,44.83468668,102.19,102.09,175.02328799]
[1770018429422,37.63687841,102.16,102.08,137.3041]
[1770018429618,44.83468668,102.15,102.06,175.05508799]
[1770018429824,332.74,102.14,102.07,137.3159]
[1770018430226,44.83468668,102.15,102.08,146.129]
[1770018430426,377.63468668,102.15,102.08,146.129]
[1770018430921,377.63468668,102.15,102.08,8.8262]
[1770018431523,377.63468668,102.15,102.09,146.1168]
[1770018431821,370.43687841,102.15,102.09,146.1168]
[1770018432018,37.63687841,102.15,102.09,146.1168]
[1770018432730,37.63687841,102.18,102.11,137.262]
[1770018433431,37.63687841,102.18,102.11,8.8235]
[1770018433633,371.17687841,102.19,102.12,174.97728799]
[1770018433826,37.63687841,102.19,102.1,175.00598799]
[1770018434026,37.63687841,102.19,102.11,146.0844]
[1770018434328,137.1217,102.22,102.14,174.95528799]
[1770018434329,378.53468668,102.22,102.14,174.95528799]
[1770018434921,37.63687841,102.21,102.12,137.2409]
[1770018435121,37.63687841,102.21,102.12,174.97288799]
[1770018435322,44.83468668,102.2,102.11,137.2607]
[1770018435532,44.83468668,102.2,102.1,37.73198799]
[1770018435533,44.83468668,102.18,102.1,37.73198799]
[1770018435730,44.83468668,102.18,102.1,175.00948799]
[1770018435928,44.83468668,102.18,102.11,137.2641]
[1770018436128,44.83468668,102.18,102.11,8.8237]
[1770018436525,37.63687841,102.18,102.11,146.0871]
[1770018436832,37.63687841,102.18,102.1,37.73198799]
[1770018437632,37.63687841,102.18,102.11,174.99598799]
[1770018438035,37.63687841,102.18,102.11,46.55578799]
[1770018438529,37.63687841,102.17,102.08,175.02468799]
[1770018438730,379.05435418,102.16,102.08,37.73198799]
[1770018439233,37.63687841,102.15,102.08,8.8264]
[1770018439432,37.63687841,102.15,102.08,183.86208799]
[1770018439630,44.81435418,102.18,102.09,175.02128799]
[1770018439831,37.63687841,102.18,102.11,137.2628]
[1770018440529,7.17747577,102.24,102.15,137.2085]
[1770018440836,7.17747577,102.24,102.14,174.95388799]
[1770018441232,15.99067577,102.24,102.15,146.0309]
[1770018441633,137.064,102.26,102.15,146.0309]
[1770018441634,7.17747577,102.26,102.18,46.54968799]
[1770018441932,7.17747577,102.32,102.24,137.0857]
[1770018442134,7.17747577,102.32,102.23,174.83498799]
[1770018442335,7.17747577,102.3,102.22,145.9225]
[1770018442631,37.63687841,102.33,102.24,174.82138799]
[1770018442836,381.63435418,102.32,102.24,37.73198799]
[1770018443130,136.9576,102.34,102.23,137.0998]
[1770018443131,8.87893766,102.34,102.26,174.79408799]
[1770018443329,7.17747577,102.3,102.23,37.73198799]
[1770018443526,7.17747577,102.3,102.21,145.9349]
[1770018443527,337.38,102.29,102.21,145.9349]
[1770018443731,39.3382987,102.33,102.24,37.73198799]
[1770018443932,37.63687841,102.34,102.27,183.59148799]
[1770018444433,37.63687841,102.33,102.24,37.73198799]
[1770018444633,37.63687841,102.31,102.23,145.9164]
[1770018444934,37.63687841,102.31,102.22,174.84008799]
[1770018445128,37.63687841,102.31,102.2,137.1325]
[1770018445129,37.63687841,102.29,102.2,137.1325]
[1770018445332,337.82,102.28,102.2,137.1325]
[1770018445534,37.63687841,102.29,102.22,137.1147]
[1770018445734,37.63687841,102.31,102.24,137.0892]
[1770018445938,337.92,102.3,102.22,174.84668799]
[1770018446134,337.92,102.3,102.23,137.1031]
[1770018446334,37.63687841,102.31,102.25,137.0729]
[1770018446734,337.88,102.32,102.25,137.0729]
[1770018446935,37.63687841,102.34,102.25,145.8847]
[1770018447134,37.63687841,102.34,102.26,174.79458799]
[1770018447437,37.63687841,102.34,102.27,174.78038799]
[1770018447632,37.63687841,102.34,102.27,183.59128799]
[1770018447834,2.77948636,102.35,102.28,137.0263]
[1770018448027,40.41636477,102.35,102.27,37.73198799]
[1770018448234,44.81435418,102.34,102.25,174.80488799]
[1770018448438,338.16,102.33,102.27,137.0487]
[1770018448640,340.95948636,102.35,102.28,145.8449]
[1770018448836,340.95948636,102.35,102.28,183.57688799]
[1770018449134,378.59636477,102.35,102.26,183.60418799]
[1770018449331,378.59636477,102.35,102.28,137.0289]
[1770018449332,40.41636477,102.35,102.28,137.0289]
[1770018449536,37.63687841,102.4,102.31,174.72158799]
[1770018449839,37.63687841,102.38,102.31,37.73198799]
[1770018450140,136.8601,102.42,102.31,37.73198799]
[1770018450141,37.63687841,102.42,102.35,136.9309]
[1770018450328,37.63687841,102.46,102.35,37.73198799]
[1770018450632,37.63687841,102.43,102.34,136.95]
[1770018450840,174.48837841,102.42,102.33,37.73198799]
[1770018451037,174.51627841,102.4,102.3,174.74058799]
[1770018451240,37.63687841,102.36,102.26,183.60158799]
[1770018451537,376.81687841,102.36,102.28,137.0357]
[1770018451738,376.81687841,102.36,102.29,137.0211]
[1770018451933,37.63687841,102.36,102.29,137.0211]
[1770018452141,376.99687841,102.36,102.28,145.8449]
[1770018452339,376.99687841,102.36,102.28,183.57688799]
[1770018452741,37.63687841,102.35,102.27,137.047]
[1770018452942,37.63687841,102.33,102.25,37.73198799]
[1770018453140,384.39435418,102.32,102.23,137.0917]
[1770018453341,37.63687841,102.31,102.22,37.73198799]
[1770018453640,37.63687841,102.33,102.26,137.0579]
[1770018453841,380.95435418,102.33,102.24,137.0879]
[1770018454038,377.33687841,102.32,102.23,37.73198799]
[1770018454239,339.7,102.32,102.23,183.64528799]
[1770018454440,339.72,102.31,102.24,137.0896]
[1770018454634,44.81435418,102.31,102.2,37.73198799]
[1770018454940,37.63687841,102.29,102.22,137.1163]
[1770018455141,37.63687841,102.29,102.21,137.1265]
[1770018455531,340.0,102.28,102.2,174.87308799]
[1770018455934,340.0,102.28,102.17,353.60884487]
[1770018455935,44.81435418,102.27,102.18,137.1688]
[1770018456134,377.63687841,102.26,102.17,400.15893286]
[1770018456339,340.1,102.25,102.18,174.90168799]
[1770018456537,377.73687841,102.25,102.17,216.43674487]
[1770018456741,384.91435418,102.25,102.17,216.43674487]
[1770018457140,37.63687841,102.24,102.15,37.73198799]
[1770018457334,340.38,102.23,102.16,137.1928]
[1770018457640,340.38,102.23,102.15,37.73198799]
[1770018458035,340.38,102.23,102.15,174.94178799]
[1770018458341,340.8,102.22,102.15,37.73198799]
[1770018458734,36.50879023,102.21,102.14,146.0449]
[1770018458932,341.06,102.2,102.14,146.0449]
[1770018459540,377.56879023,102.2,102.12,36.01982913]
[1770018459744,377.56879023,102.2,102.08,137.2947]
[1770018459745,43.686266,102.17,102.08,137.2947]
[1770018459942,36.50879023,102.16,102.07,137.3177]
[1770018460140,341.84,102.15,102.07,137.3177]
[1770018460649,349.01747577,102.15,102.06,146.1498]
[1770018460947,349.01747577,102.15,102.05,146.1629]
[1770018461142,342.0,102.14,102.06,137.3292]
[1770018461741,342.0,102.14,102.06,182.63392253]
[1770018462239,36.50879023,102.14,102.06,173.80582253]
[1770018462440,378.80879023,102.14,102.06,173.80582253]
[1770018462838,379.00879023,102.14,102.06,173.80582253]
[1770018463038,379.00879023,102.14,102.06,36.47652253]
[1770018463238,43.686266,102.13,102.04,137.3464]
[1770018463440,342.5,102.14,102.05,36.47652253]
[1770018463647,173.70929023,102.16,102.06,36.47652253]
[1770018463648,523.684266,102.16,102.06,36.47652253]
[1770018463850,36.50879023,102.15,102.06,36.47652253]
[1770018464150,36.50879023,102.15,102.07,137.3135]
[1770018464552,342.8,102.16,102.08,137.3039]
[1770018465056,36.50879023,102.15,102.07,36.47652253]
[1770018465251,36.50879023,102.15,102.05,137.3445]
[1770018465458,487.18007577,102.16,102.05,137.3445]
[1770018465459,43.686266,102.14,102.05,173.81892253]
[1770018466158,43.686266,102.14,102.05,36.47652253]
[1770018467261,516.48789023,102.13,102.03,146.1924]
[1770018467555,379.24879023,102.13,102.03,182.66892253]
[1770018467756,37.87845615,102.12,102.03,45.30722253]
[1770018467952,45.05593192,102.12,102.03,182.67922253]
[1770018468154,37.87845615,102.12,102.05,137.3431]
[1770018468354,7.17747577,102.14,102.06,38.82152227]
[1770018468355,249.86,102.14,102.06,38.82152227]
[1770018469157,287.73845615,102.14,102.06,38.82152227]
[1770018470163,37.87845615,102.12,102.03,185.02422227]
[1770018470864,37.87845615,102.12,102.04,146.1864]
[1770018471065,37.87845615,102.12,102.03,176.19352227]
[1770018471267,45.05593192,102.12,102.03,38.82152227]
[1770018471760,45.05593192,102.12,102.0,176.22192227]
[1770018471761,37.87845615,102.09,102.0,176.22192227]
[1770018472257,37.87845615,102.09,102.0,47.65472227]
[1770018472661,175.18435615,102.08,102.0,38.82152227]
[1770018472865,342.64,102.07,102.0,38.82152227]
[1770018474058,380.51845615,102.07,101.99,8.834]
[1770018474460,380.51845615,102.07,101.99,146.2599]
[1770018474656,380.51845615,102.07,101.99,8.834]
[1770018475057,37.87845615,102.06,101.99,8.834]
[1770018475562,45.05593192,102.09,101.99,185.07762227]
[1770018475766,344.0,102.07,101.99,185.07762227]
[1770018476362,37.87845615,102.09,102.0,176.23382227]
[1770018476668,37.87845615,102.09,102.0,38.82152227]
[1770018476669,382.11845615,102.08,102.0,38.82152227]
[1770018477267,37.87845615,102.08,102.0,38.82152227]
[1770018477470,344.54,102.07,102.0,38.82152227]
[1770018477770,389.59593192,102.07,101.98,176.25992227]
[1770018478267,389.59593192,102.07,101.98,185.09492227]
[1770018478671,389.59593192,102.07,101.98,47.65652227]
[1770018478870,37.87845615,102.06,101.98,38.82152227]
[1770018479071,352.05747577,102.05,101.98,38.82152227]
[1770018479274,344.86,102.04,101.98,38.82152227]
[1770018479868,382.73845615,102.04,101.96,8.8366]
[1770018480073,382.73845615,102.04,101.95,391.7139504]
[1770018480074,45.05593192,102.03,101.95,254.2456504]
[1770018480673,37.87845615,102.02,101.95,254.2456504]
[1770018480869,37.87845615,102.0,101.92,38.82152227]
[1770018481169,45.05593192,101.99,101.9,8.8419]
[1770018481371,37.87845615,101.94,101.87,38.82152227]
[1770018481571,37.87845615,101.91,101.82,176.46632227]
[1770018481772,345.36,101.9,101.83,5.48599819]
[1770018481971,345.36,101.9,101.82,185.32532227]
[1770018482372,390.67593192,101.93,101.84,176.44932227]
[1770018482573,390.67593192,101.93,101.82,137.655]
[1770018482574,45.05593192,101.91,101.82,137.655]
[1770018482772,45.05593192,101.91,101.82,176.47652227]
[1770018482973,45.05593192,101.91,101.83,137.6407]
[1770018483169,45.05593192,101.91,101.81,137.6567]
[1770018483170,45.05593192,101.89,101.8,176.50412227]
[1770018483374,45.05593192,101.89,101.8,38.82152227]
[1770018483570,7.17747577,101.87,101.8,38.82152227]
[1770018483776,45.05593192,101.87,101.79,396.69810864]
[1770018483973,345.64,101.88,101.8,38.82152227]
[1770018484171,383.51845615,101.88,101.8,38.82152227]
[1770018484372,383.51845615,101.88,101.8,176.50052227]
[1770018484570,353.09747577,101.89,101.81,185.33972227]
[1770018484776,353.09747577,101.89,101.81,38.82152227]
[1770018485074,345.92,101.89,101.81,176.48122227]
[1770018485380,346.3,101.9,101.82,137.6542]
[1770018485579,384.17845615,101.9,101.81,38.82152227]
[1770018485771,384.17845615,101.9,101.81,176.48972227]
[1770018485971,384.17845615,101.9,101.82,137.6547]
[1770018486372,384.17845615,101.9,101.82,146.5039]
[1770018486677,37.87845615,101.93,101.85,176.43562227]
[1770018487380,384.95845615,101.93,101.85,47.66792227]
[1770018487573,175.40155615,101.92,101.82,176.47622227]
[1770018487780,45.94424259,101.89,101.79,404.7072683]
[1770018487975,347.08,101.88,101.8,37.98908193]
[1770018488174,45.94424259,101.89,101.8,175.67138193]
[1770018488377,385.82676682,101.89,101.81,184.50708193]
[1770018488578,38.76676682,101.89,101.81,184.50708193]
[1770018488779,38.76676682,101.89,101.82,146.5032]
[1770018488981,38.76676682,101.89,101.82,37.98908193]
[1770018489177,386.04676682,101.89,101.82,37.98908193]
[1770018489376,38.76676682,101.87,101.79,258.1702683]
[1770018489578,386.14676682,101.87,101.79,258.1702683]
[1770018490675,523.73646682,101.87,101.79,258.1702683]
[1770018490880,386.14676682,101.87,101.79,258.1702683]
[1770018491285,38.76676682,101.86,101.82,2.77948636]
[1770018491583,38.76676682,101.86,101.79,220.18118637]
[1770018491785,348.72,101.86,101.79,395.8640683]
[1770018491986,348.72,101.86,101.79,267.0216683]
[1770018492388,387.48676682,101.86,101.79,220.18118637]
[1770018492582,38.76676682,101.85,101.79,220.18118637]
[1770018493088,349.36,101.86,101.79,220.18118637]
[1770018493585,349.36,101.86,101.79,404.7149683]
[1770018493787,388.12676682,101.86,101.79,258.1702683]
[1770018495490,388.12676682,101.86,101.76,37.98908193]
[1770018495491,38.76676682,101.85,101.76,37.98908193]
[1770018495691,38.76676682,101.85,101.77,175.70778193]
[1770018495892,38.76676682,101.85,101.77,175.71178193]
[1770018496094,38.76676682,101.85,101.78,8.8524]
[1770018496392,38.76676682,101.85,101.77,175.71178193]
[1770018496886,350.72,101.84,101.77,37.98908193]
[1770018497093,176.32906682,101.89,101.81,37.98908193]
[1770018497492,38.76676682,101.89,101.81,37.98908193]
[1770018497891,38.76676682,101.89,101.78,37.98908193]
[1770018497892,38.76676682,101.88,101.78,37.98908193]
[1770018498087,38.76676682,101.88,101.79,37.98908193]
[1770018498284,38.76676682,101.88,101.8,137.6816]
[1770018498488,38.76676682,101.88,101.8,175.67068193]
[1770018499395,38.76676682,101.88,101.8,184.52108193]
[1770018500690,38.76676682,101.88,101.8,46.83948193]
[1770018501295,527.59646682,101.87,101.78,8.8522]
[1770018501487,390.00676682,101.87,101.78,184.54988193]
[1770018501793,351.3,101.87,101.8,37.98908193]
[1770018502196,351.3,101.87,101.81,8.8498]
[1770018502385,351.3,101.87,101.81,146.5181]
[1770018502991,176.34186682,101.88,101.8,37.98908193]
[1770018503192,38.76676682,101.88,101.8,37.98908193]
[1770018503487,351.9,101.87,101.8,37.98908193]
[1770018503888,351.9,101.87,101.8,46.83978193]
[1770018504100,351.9,101.87,101.8,184.52108193]
[1770018504395,351.9,101.87,101.81,8.8499]
[1770018505095,390.66676682,101.87,101.8,37.98908193]
[1770018505294,390.66676682,101.87,101.79,8.8513]
[1770018505496,399.51206682,101.87,101.79,8.8513]
[1770018506093,38.76676682,101.86,101.79,8.8513]
[1770018506496,38.76676682,101.86,101.79,146.5469]
[1770018506695,38.76676682,101.86,101.79,8.8513]
[1770018506696,392.14676682,101.86,101.79,8.8513]
[1770018507090,353.38,101.86,101.79,46.84038193]
[1770018507299,137.575,101.88,101.8,5.4614564]
[1770018507300,38.76676682,101.88,101.8,5.4614564]
[1770018507597,38.76676682,101.86,101.78,37.98908193]
[1770018508098,47.61316682,101.86,101.78,46.84158193]
[1770018508693,38.76676682,101.88,101.79,175.68508193]
[1770018508899,340.44676682,101.88,101.8,181.13389549]
[1770018509094,340.44676682,101.88,101.81,137.6658]
[1770018509294,38.76676682,101.93,101.84,37.98908193]
[1770018509499,334.76676682,101.93,101.85,175.60148193]
[1770018509792,334.76676682,101.93,101.85,37.98908193]
[1770018509998,38.76676682,101.92,101.83,182.84276932]
[1770018510191,47.60756682,101.92,101.84,5.46503527]
[1770018510392,401.36756682,101.92,101.83,182.84276932]
[1770018510591,401.36756682,101.92,101.84,181.08785849]
[1770018510592,392.52676682,101.92,101.84,181.08785849]
[1770018510897,392.60676682,101.92,101.85,43.45947365]
[1770018511099,38.76676682,101.91,101.82,175.64248193]
[1770018511294,47.60836682,101.91,101.83,5.47357567]
[1770018511497,354.08,101.9,101.82,46.83788193]
[1770018511794,38.76676682,101.89,101.83,5.50758775]
[1770018512102,38.76676682,101.89,101.8,184.51568193]
[1770018512295,393.12676682,101.89,101.81,181.16824801]
[1770018512496,393.12676682,101.89,101.82,5.51046608]
[1770018513399,393.12676682,101.89,101.82,14.35946608]
[1770018513598,393.12676682,101.89,101.83,5.51046608]
[1770018514999,38.76676682,101.88,101.83,5.51046608]
[1770018515199,38.76676682,101.88,101.81,37.98908193]
[1770018515399,394.46676682,101.88,101.82,5.53495701]
[1770018516302,394.46676682,101.88,101.83,5.53495701]
[1770018516495,394.46676682,101.88,101.84,5.53495701]
[1770018516696,47.60886682,101.91,101.85,5.53495701]
[1770018516897,395.06676682,101.91,101.86,5.53495701]
[1770018517093,395.06676682,101.91,101.87,5.53495701]
[1770018517292,395.06676682,101.91,101.84,137.6275]
[1770018517293,395.18676682,101.91,101.88,5.53495701]
[1770018517495,395.18676682,101.91,101.84,137.6275]
[1770018517698,395.18676682,101.91,101.85,5.54265979]
[1770018518001,394.02531714,101.94,101.86,181.48284872]
[1770018518199,394.02531714,101.94,101.87,43.88404872]
[1770018518403,394.02531714,101.94,101.88,14.38645979]
[1770018518601,394.02531714,101.94,101.89,5.54265979]
[1770018518801,394.02531714,101.94,101.9,5.54265979]
[1770018519002,394.02531714,101.94,101.91,5.54265979]
[1770018519296,46.06221714,101.97,101.92,5.55379629]
[1770018519500,394.82531714,101.98,101.93,5.55352796]
[1770018519700,394.82531714,101.98,101.94,5.55352796]
[1770018519901,394.82531714,101.98,101.9,47.05606594]
[1770018520092,394.82531714,101.98,101.89,17.55717701]
[1770018520093,37.22531714,101.97,101.89,17.55717701]
[1770018520293,37.22531714,101.97,101.9,5.55470596]
[1770018520497,37.22531714,101.97,101.89,155.11767701]
[1770018521095,37.22531714,101.97,101.89,17.55717701]
[1770018521300,37.22531714,101.97,101.9,17.55667701]
[1770018521602,37.22531714,101.97,101.91,8.71467701]
[1770018522091,37.22531714,101.97,101.91,17.55587701]
[1770018522293,37.22531714,101.97,101.92,8.71467701]
[1770018522902,37.22531714,101.97,101.91,8.8412]
[1770018522903,37.22531714,101.97,101.91,17.55587701]
[1770018523304,37.22531714,101.97,101.92,8.71467701]
[1770018524404,37.22531714,101.97,101.89,49.89871107]
[1770018525407,37.22531714,101.97,101.89,58.74151107]
[1770018525806,37.22531714,101.97,101.9,146.3889]
[1770018526104,37.22531714,101.97,101.91,11.55732214]
[1770018526303,37.22531714,101.97,101.9,187.44551107]
[1770018526507,37.22531714,101.97,101.91,11.55732214]
[1770018527108,37.22531714,101.97,101.9,187.44551107]
[1770018527401,8.8341,102.0,101.93,175.84738893]
[1770018527402,396.68531714,102.0,101.93,175.84738893]
[1770018527596,137.3681,102.04,101.94,38.34138893]
[1770018527597,359.56,102.01,101.94,38.34138893]
[1770018527797,400.45354577,102.01,101.94,38.34138893]
[1770018528302,400.73354577,102.01,101.94,175.83358893]
[1770018528502,400.73354577,102.01,101.94,187.39091107]
[1770018528503,359.96,102.01,101.94,187.39091107]
[1770018528704,40.77354577,102.03,101.95,187.18208461]
[1770018528899,40.77354577,102.02,101.95,49.70318461]
[1770018529100,40.77354577,102.02,101.95,38.14586247]
[1770018529308,40.77354577,102.02,101.93,137.506]
[1770018529309,49.60654577,102.01,101.93,11.55732214]
[1770018529501,49.60654577,102.01,101.92,38.14586247]
[1770018529502,40.77354577,101.99,101.92,38.14586247]
[1770018529708,40.77354577,101.97,101.9,11.55732214]
[1770018530009,360.3,101.96,101.9,184.53406247]
[1770018530209,360.3,101.96,101.9,46.98796247]
[1770018530611,360.3,101.96,101.9,38.14586247]
[1770018530911,360.3,101.96,101.9,175.69076247]
[1770018531105,360.3,101.96,101.91,46.98706247]
[1770018531607,361.02,101.99,101.92,46.98616247]
[1770018532213,40.77354577,102.0,101.93,5.21264919]
[1770018532410,361.42,101.99,101.94,5.21264919]
[1770018532610,361.42,101.99,101.95,5.21264919]
[1770018532914,40.77354577,102.03,101.96,5.20962933]
[1770018533110,361.52,102.02,101.97,5.20962933]
[1770018533302,402.29354577,102.02,101.98,5.20962933]
[1770018533501,402.29354577,102.02,101.94,175.63846247]
[1770018533702,402.29354577,102.02,101.96,8.8368]
[1770018533907,402.29354577,102.02,101.97,5.20254399]
[1770018534611,402.29354577,102.02,101.97,14.03854399]
[1770018534812,361.52,102.02,101.98,5.20254399]
[1770018535005,361.52,102.02,101.97,8.836]
[1770018535210,361.52,102.02,101.98,5.19774809]
[1770018535411,49.60084577,102.08,101.99,43.33795036]
[1770018535615,49.60084577,102.08,102.0,5.19208789]
[1770018535807,40.77354577,102.06,102.01,5.19208789]
[1770018536004,40.77354577,102.06,101.99,46.97986247]
[1770018536307,40.77354577,102.06,102.0,5.18635742]
[1770018536504,40.77354577,102.06,102.01,5.18635742]
[1770018536708,362.76,102.07,102.02,5.18426225]
[1770018536910,362.76,102.07,102.01,175.54496247]
[1770018537104,362.76,102.07,102.02,5.18233793]
[1770018537306,362.76,102.07,102.01,38.14586247]
[1770018537509,40.77354577,102.07,102.0,8.8331]
[1770018537711,363.16,102.06,102.01,5.17902505]
[1770018537910,403.93354577,102.06,101.98,46.98086247]
[1770018538213,363.34,102.05,101.98,38.14586247]
[1770018538410,404.11354577,102.05,101.98,38.14586247]
[1770018538614,404.11354577,102.05,101.99,10.3556118]
[1770018538811,404.11354577,102.05,101.99,5.17903389]
[1770018539005,404.11354577,102.05,101.97,8.8359]
[1770018539209,40.77354577,102.05,101.98,5.17795944]
[1770018539411,364.1,102.04,101.99,5.17599371]
[1770018539612,364.1,102.04,101.97,146.2884]
[1770018539915,40.77354577,102.05,101.98,189.59661452]
[1770018540111,40.77354577,102.05,101.96,137.455]
[1770018540311,364.32,102.04,101.97,5.17588403]
[1770018540508,364.32,102.04,101.98,5.17588403]
[1770018541510,405.09354577,102.04,101.96,175.60086247]
[1770018541718,40.77354577,102.02,101.93,175.64166247]
[1770018542011,40.77354577,102.02,101.94,137.4928]
[1770018542012,365.1,102.01,101.94,137.4928]
[1770018542214,405.87354577,102.01,101.94,8.8384]
[1770018542716,405.87354577,102.01,101.95,8.8376]
[1770018542912,405.87354577,102.01,101.96,38.14586247]
[1770018542913,365.1,102.01,101.96,38.14586247]
[1770018543316,40.77354577,102.04,101.96,175.61106247]
[1770018543513,406.45354577,102.04,101.96,175.61106247]
[1770018543811,137.3197,102.07,101.98,175.58496247]
[1770018543812,40.77354577,102.07,101.98,175.58496247]
[1770018544112,40.77354577,102.04,101.95,182.84064986]
[1770018544312,365.88,102.03,101.95,175.62266247]
[1770018544512,40.77354577,102.01,101.92,187.32526536]
[1770018544813,406.71354577,102.01,101.93,38.14586247]
[1770018545013,40.77354577,102.0,101.93,38.14586247]
[1770018545213,40.77354577,102.0,101.9,567.16516247]
[1770018545414,49.60834577,101.99,101.9,429.62586247]
[1770018545613,144.63438739,102.0,101.9,567.17096247]
[1770018545614,406.83354577,101.98,101.9,567.17096247]
[1770018546011,406.83354577,101.98,101.91,175.67656247]
[1770018546708,40.77354577,101.98,101.91,175.67656247]
[1770018547310,40.77354577,102.05,101.98,137.439]
[1770018547513,40.77354577,102.05,101.97,38.14586247]
[1770018547812,37.54177568,102.03,101.94,38.14586247]
[1770018548520,37.54177568,102.02,101.94,38.14586247]
[1770018548717,404.10177568,102.02,101.94,38.14586247]
[1770018548922,404.10177568,102.02,101.95,177.63519784]
[1770018549220,37.54177568,102.04,101.97,8.8358]
[1770018549418,404.20177568,102.04,101.97,8.8358]
[1770018550110,37.54177568,102.03,101.95,186.47249784]
[1770018550314,37.54177568,102.03,101.95,177.63519784]
[1770018550816,37.54177568,102.03,101.96,8.8369]
[1770018551015,37.54177568,102.02,101.93,137.5064]
[1770018551417,367.18,102.01,101.94,177.64869784]
[1770018551612,182.12116307,102.04,101.96,40.15679784]
[1770018551613,37.54177568,102.04,101.96,40.15679784]
[1770018551814,404.70177568,102.04,101.96,40.15679784]
[1770018552022,37.54177568,102.03,101.96,48.99369784]
[1770018553018,75.73807568,102.09,102.0,137.4089]
[1770018553222,405.16177568,102.08,102.0,137.4089]
[1770018553627,37.54177568,102.07,101.99,177.58229784]
[1770018553925,37.54177568,102.07,101.99,40.15679784]
[1770018554126,37.54177568,102.07,101.99,177.58089784]
[1770018554815,37.54177568,102.07,102.0,8.8333]
[1770018555414,37.54177568,102.07,102.01,8.8324]
[1770018555725,226.04,102.09,102.02,177.54229784]
[1770018556220,37.54177568,102.11,102.04,8.8297]
[1770018557016,37.54177568,102.09,102.0,568.98669784]
[1770018557429,37.54177568,102.09,102.01,137.3963]
[1770018557728,37.54177568,102.09,102.01,8.8325]
[1770018558629,405.46177568,102.09,102.01,8.8325]
[1770018558830,37.54177568,102.08,102.01,8.8325]
[1770018560029,37.54177568,102.08,101.99,8.834]
[1770018560436,37.54177568,102.08,102.01,8.8325]
[1770018562032,37.54177568,102.08,102.0,189.23950073]
[1770018562033,368.6,102.07,101.99,8.8342]
[1770018562235,406.14177568,102.07,102.0,177.56879784]
[1770018563432,406.14177568,102.07,102.0,40.15679784]
[1770018564233,368.6,102.07,102.01,60.65980073]
[1770018565335,37.54177568,102.08,102.02,11.67060289]
[1770018565629,37.54177568,102.08,102.01,60.65980073]
[1770018566230,37.54177568,102.08,102.02,20.50230289]
[1770018566632,37.54177568,102.08,102.01,51.82740073]
[1770018566831,37.54177568,102.08,102.01,60.65990073]
[1770018567030,37.54177568,102.08,102.01,189.22420073]
[1770018567237,37.54177568,102.08,102.02,11.67060289]
[1770018567438,37.54177568,102.08,102.01,51.82740073]
[1770018567937,53.56122786,102.08,102.01,11.67060289]
[1770018568129,37.54177568,102.06,102.0,11.67060289]
[1770018568326,409.02177568,102.06,102.0,11.67060289]
[1770018569436,409.62177568,102.06,102.0,11.67060289]
[1770018570337,37.54177568,102.05,101.99,11.67060289]
[1770018571130,37.54177568,102.07,102.01,11.67060289]
[1770018571330,328.32,102.08,102.02,11.67060289]
[1770018571929,37.54177568,102.07,102.02,11.67060289]
[1770018572133,37.54177568,102.06,102.0,11.67060289]
[1770018573226,411.52177568,102.06,102.0,11.67060289]
[1770018573531,37.54177568,102.05,102.0,11.67060289]
[1770018573739,373.98,102.06,102.01,11.67060289]
[1770018573937,411.82177568,102.07,102.02,11.67060289]
[1770018577532,44.73412786,102.11,102.04,11.67060289]
[1770018577838,39.38912486,102.1,102.05,11.67060289]